bitfinex-derivatives/quotes_BTCF0:USTF0_20260207
["timestamp","ask_amount","ask_price","bid_price","bid_amount"]
[1770475201695,0.014577,68673.0,68610.0,0.01459]
[1770475201696,0.54915623,68645.0,68610.0,0.01459]
[1770475201907,0.54915623,68645.0,68608.0,0.56498926]
[1770475202090,0.014583,68644.0,68620.0,0.014588]
[1770475202290,0.014584,68641.0,68620.0,0.014588]
[1770475202692,0.54915623,68646.0,68608.0,0.56498926]
[1770475202998,0.014584,68641.0,68617.0,0.014589]
[1770475203194,0.014584,68641.0,68608.0,0.56498926]
[1770475203398,0.014582,68649.0,68611.0,0.56498926]
[1770475203693,0.54915623,68654.0,68611.0,0.56498926]
[1770475203893,0.014583,68644.0,68623.0,0.014588]
[1770475204093,0.014581,68654.0,68630.0,0.014586]
[1770475204494,0.54915623,68669.0,68634.0,0.014585]
[1770475204695,0.01458,68658.0,68634.0,0.014585]
[1770475204896,0.014581,68656.0,68634.0,0.014585]
[1770475205096,0.014577,68674.0,68648.0,0.014582]
[1770475205293,0.54915623,68681.0,68655.0,0.014581]
[1770475205596,0.54915623,68681.0,68651.0,0.014581]
[1770475205801,0.014577,68675.0,68649.0,0.014582]
[1770475205995,0.014577,68675.0,68652.0,0.014581]
[1770475206599,0.014576,68679.0,68656.0,0.01458]
[1770475206994,0.55594829,68694.0,68621.0,0.740268]
[1770475206995,0.55594829,68694.0,68666.0,0.014578]
[1770475207194,0.014574,68689.0,68666.0,0.014578]
[1770475207800,0.55594829,68715.0,68675.0,0.53644936]
[1770475208000,0.01457,68705.0,68679.0,0.014576]
[1770475208207,0.014571,68704.0,68675.0,0.014577]
[1770475208396,0.014569,68714.0,68687.0,0.014574]
[1770475208597,0.0002,68716.0,68695.0,0.014572]
[1770475208799,0.55594829,68741.0,68692.0,0.53644936]
[1770475209002,0.014563,68739.0,68711.0,0.014569]
[1770475209304,0.55594829,68748.0,68713.0,0.014568]
[1770475209500,0.55594829,68748.0,68704.0,0.53644936]
[1770475209501,0.014562,68746.0,68718.0,0.014567]
[1770475209812,0.072792,68763.0,68718.0,0.014567]
[1770475209813,0.014559,68756.0,68723.0,0.014566]
[1770475210104,0.55594829,68761.0,68700.0,0.22178842]
[1770475210105,0.55594829,68761.0,68701.0,0.68824]
[1770475210304,0.01456,68752.0,68717.0,0.56728583]
[1770475210510,0.014553,68788.0,68701.0,0.761097]
[1770475210511,0.014558,68763.0,68733.0,0.58184983]
[1770475210707,0.54789266,68769.0,68738.0,0.014563]
[1770475210907,0.54789266,68769.0,68733.0,0.56728583]
[1770475211101,0.54789266,68769.0,68736.0,0.014564]
[1770475211302,0.014557,68767.0,68736.0,0.58184983]
[1770475211504,0.014555,68777.0,68745.0,0.014562]
[1770475212004,0.014554,68783.0,68752.0,0.01456]
[1770475212206,0.54784266,68794.0,68752.0,0.56728583]
[1770475212404,0.54789266,68801.0,68740.0,0.56728583]
[1770475212608,0.54789266,68828.0,68788.0,0.56728583]
[1770475212907,0.54789266,68841.0,68817.0,0.014546]
[1770475213305,0.072696,68854.0,68810.0,0.56728583]
[1770475213499,0.014542,68838.0,68798.0,0.01455]
[1770475213697,0.54789266,68847.0,68802.0,0.56728583]
[1770475214007,0.54789266,68847.0,68780.0,0.14893042]
[1770475214008,0.014547,68813.0,68788.0,0.56728583]
[1770475214402,0.54789266,68826.0,68772.0,0.014556]
[1770475214403,0.014549,68808.0,68772.0,0.014556]
[1770475214600,0.01455,68801.0,68772.0,0.56728583]
[1770475214800,0.54789266,68814.0,68776.0,0.014555]
[1770475215309,0.54789266,68813.0,68778.0,0.58184083]
[1770475215511,0.014546,68822.0,68783.0,0.014553]
[1770475215711,0.014546,68822.0,68788.0,0.014553]
[1770475215897,0.014536,68866.0,68760.0,0.00016878]
[1770475215898,0.54789266,68814.0,68766.0,0.014557]
[1770475216100,0.54789266,68807.0,68764.0,0.56728583]
[1770475216809,0.54789266,68804.0,68764.0,0.58184383]
[1770475217001,0.54789266,68804.0,68760.0,0.00016878]
[1770475217002,0.54789266,68804.0,68766.0,0.56728583]
[1770475217202,0.014548,68808.0,68769.0,0.58184183]
[1770475217401,0.54789266,68817.0,68769.0,0.56728583]
[1770475217402,0.0002,68804.0,68769.0,0.56728583]
[1770475217705,0.014547,68815.0,68779.0,0.014554]
[1770475218010,0.014547,68815.0,68784.0,0.014553]
[1770475218211,0.014547,68815.0,68769.0,0.56728583]
[1770475218212,0.014546,68822.0,68789.0,0.014552]
[1770475218705,0.014544,68829.0,68793.0,0.014552]
[1770475218900,0.014545,68824.0,68793.0,0.014552]
[1770475219712,0.014544,68829.0,68793.0,0.014552]
[1770475220007,0.014545,68825.0,68789.0,0.56728583]
[1770475220200,0.0002,68813.0,68789.0,0.56728583]
[1770475220405,0.014545,68825.0,68789.0,0.56728583]
[1770475220602,0.014544,68829.0,68789.0,0.56728583]
[1770475220808,0.54789266,68830.0,68798.0,0.01455]
[1770475220809,0.0002,68817.0,68798.0,0.01455]
[1770475221006,0.014544,68827.0,68797.0,0.014551]
[1770475221314,0.54789266,68843.0,68801.0,0.01455]
[1770475221509,0.014544,68829.0,68801.0,0.01455]
[1770475221907,0.014543,68834.0,68801.0,0.01455]
[1770475222210,0.014543,68834.0,68804.0,0.58183483]
[1770475222415,0.014538,68856.0,68816.0,0.56728583]
[1770475222618,0.014539,68852.0,68823.0,0.014545]
[1770475222811,0.01454,68848.0,68823.0,0.014545]
[1770475223014,0.01454,68848.0,68822.0,0.014545]
[1770475223516,0.014539,68853.0,68826.0,0.014544]
[1770475223810,0.014539,68853.0,68789.0,0.014552]
[1770475223811,0.54789266,68856.0,68811.0,0.014548]
[1770475224016,0.54789266,68836.0,68796.0,0.014551]
[1770475224211,0.54789266,68836.0,68790.0,0.56728583]
[1770475224609,0.014544,68831.0,68800.0,0.01455]
[1770475224808,0.014544,68827.0,68800.0,0.01455]
[1770475225010,0.54789266,68836.0,68808.0,0.014548]
[1770475225213,0.014545,68827.0,68790.0,0.56728583]
[1770475225421,0.014545,68823.0,68797.0,0.014551]
[1770475225607,0.014544,68828.0,68790.0,0.56728583]
[1770475225813,0.014544,68828.0,68794.0,0.56728583]
[1770475226312,0.0002,68812.0,68802.0,0.01455]
[1770475226512,0.014544,68829.0,68802.0,0.01435]
[1770475226704,0.54789266,68836.0,68794.0,0.56728583]
[1770475226910,0.014542,68840.0,68812.0,0.014547]
[1770475227417,0.54789266,68836.0,68793.0,0.56728583]
[1770475227627,0.54789266,68836.0,68799.0,0.01455]
[1770475227820,0.014542,68838.0,68811.0,0.014548]
[1770475228117,0.014539,68853.0,68817.0,0.56728583]
[1770475228320,0.014539,68853.0,68820.0,0.56728583]
[1770475228518,0.0002,68836.0,68820.0,0.58183183]
[1770475228719,0.014539,68851.0,68820.0,0.56728583]
[1770475228910,0.01454,68848.0,68825.0,0.014545]
[1770475229108,0.54789266,68862.0,68820.0,0.56728583]
[1770475229306,0.01453,68896.0,68832.0,0.56728583]
[1770475229307,0.014539,68854.0,68832.0,0.56728583]
[1770475229509,0.014539,68854.0,68830.0,0.014544]
[1770475229813,0.014539,68851.0,68830.0,0.014544]
[1770475230012,0.01454,68847.0,68824.0,0.014545]
[1770475230417,0.54789266,68865.0,68819.0,0.56728583]
[1770475230621,0.014539,68852.0,68828.0,0.014544]
[1770475230919,0.014539,68852.0,68824.0,0.56728583]
[1770475230920,0.014537,68864.0,68840.0,0.014541]
[1770475231113,0.014536,68868.0,68833.0,0.56728583]
[1770475231426,0.54789266,68877.0,68855.0,0.014538]
[1770475231608,0.54789266,68877.0,68837.0,0.56728583]
[1770475231609,0.014532,68884.0,68861.0,0.014537]
[1770475231809,0.087164,68910.0,68850.0,0.56728583]
[1770475231810,0.014531,68892.0,68850.0,0.56728583]
[1770475232019,0.014529,68901.0,68876.0,0.014534]
[1770475232220,0.01453,68894.0,68871.0,0.56728583]
[1770475232515,0.54789266,68914.0,68871.0,0.56728583]
[1770475232718,0.56241866,68914.0,68873.0,0.56728583]
[1770475232908,0.56241866,68914.0,68869.0,0.072679]
[1770475232909,0.014526,68914.0,68888.0,0.014531]
[1770475233115,0.014527,68911.0,68884.0,0.58181783]
[1770475233314,0.014527,68909.0,68886.0,0.58181783]
[1770475233836,0.014526,68913.0,68889.0,0.014531]
[1770475234117,0.54789266,68927.0,68886.0,0.56728583]
[1770475234318,0.014527,68908.0,68886.0,0.56728583]
[1770475234925,0.014528,68905.0,68886.0,0.56728583]
[1770475235120,0.54789266,68927.0,68905.0,0.014528]
[1770475235320,0.54789266,68939.0,68898.0,0.014529]
[1770475235516,0.014517,68956.0,68888.0,0.56728583]
[1770475235517,0.54789266,68936.0,68888.0,0.56728583]
[1770475235717,0.014527,68909.0,68884.0,0.014532]
[1770475235926,0.54789266,68918.0,68881.0,0.014533]
[1770475236118,0.54789266,68918.0,68883.0,0.014532]
[1770475236119,0.014528,68905.0,68883.0,0.014532]
[1770475236322,0.54576589,68933.0,68882.0,0.60704687]
[1770475236525,0.014523,68927.0,68901.0,0.014529]
[1770475236725,0.54576589,68946.0,68919.0,0.014525]
[1770475237025,0.014523,68929.0,68905.0,0.014528]
[1770475237322,0.54576589,68937.0,68893.0,0.01453]
[1770475237523,0.54576589,68919.0,68881.0,0.53438187]
[1770475237724,0.014532,68885.0,68861.0,0.014537]
[1770475237921,0.014532,68885.0,68834.0,0.014543]
[1770475237922,0.2455,68882.0,68842.0,0.3876955]
[1770475238129,0.2455,68882.0,68869.0,0.014535]
[1770475238322,0.54576589,68896.0,68868.0,0.014536]
[1770475238323,0.014531,68892.0,68868.0,0.014536]
[1770475238518,0.01453,68893.0,68869.0,0.014535]
[1770475238712,0.54576589,68896.0,68854.0,0.2917305]
[1770475238918,0.54576589,68891.0,68860.0,0.014537]
[1770475239126,0.014533,68883.0,68860.0,0.014537]
[1770475239336,0.0001201,68882.0,68854.0,0.2917305]
[1770475239627,0.0001201,68882.0,68860.0,0.014537]
[1770475240123,0.0001201,68882.0,68854.0,0.2917305]
[1770475240124,0.014533,68881.0,68854.0,0.2917305]
[1770475240424,0.00013287,68880.0,68854.0,0.2917305]
[1770475240629,0.00013287,68880.0,68858.0,0.014538]
[1770475240921,0.00013287,68880.0,68863.0,0.014537]
[1770475241121,0.00013287,68880.0,68854.0,0.2917305]
[1770475241333,0.00015631,68879.0,68851.0,0.014539]
[1770475241518,0.00013012,68878.0,68851.0,0.014539]
[1770475241720,0.014535,68873.0,68851.0,0.014539]
[1770475241918,0.00015631,68872.0,68851.0,0.014539]
[1770475242916,0.00015631,68872.0,68854.0,0.014539]
[1770475243125,0.00015631,68872.0,68845.0,0.014541]
[1770475243315,0.00015631,68872.0,68855.0,0.014538]
[1770475243628,0.0002,68888.0,68856.0,0.27032924]
[1770475243826,0.0002,68888.0,68860.0,0.014537]
[1770475244219,0.54596589,68888.0,68836.0,0.014542]
[1770475244424,0.54576589,68863.0,68821.0,0.27032924]
[1770475244618,0.0002,68849.0,68821.0,0.27032924]
[1770475244824,8.9e-07,68863.0,68855.0,0.014538]
[1770475245028,8.9e-07,68863.0,68836.0,0.072714]
[1770475245029,8.9e-07,68863.0,68843.0,0.53438187]
[1770475245233,8.9e-07,68863.0,68856.0,0.014538]
[1770475245530,8.9e-07,68863.0,68843.0,0.53438187]
[1770475245531,0.014534,68876.0,68843.0,0.53438187]
[1770475245725,0.014534,68877.0,68857.0,0.014538]
[1770475245922,0.54576589,68879.0,68843.0,0.53438187]
[1770475246124,0.54576589,68884.0,68843.0,0.53438187]
[1770475246331,0.54576589,68884.0,68854.0,0.014539]
[1770475246627,0.54576589,68884.0,68831.0,0.072719]
[1770475246628,0.61843289,68882.0,68831.0,0.53438187]
[1770475246823,0.014538,68857.0,68838.0,0.014542]
[1770475247022,0.014538,68857.0,68831.0,0.53438187]
[1770475247023,0.014538,68857.0,68837.0,0.014542]
[1770475247218,0.014539,68853.0,68832.0,0.014543]
[1770475247723,0.014538,68857.0,68838.0,0.014542]
[1770475247932,0.54576589,68865.0,68819.0,0.53438187]
[1770475248126,0.01454,68851.0,68829.0,0.014544]
[1770475248431,0.01454,68851.0,68832.0,0.014543]
[1770475248621,0.01454,68848.0,68820.0,0.53450424]
[1770475248820,0.01454,68848.0,68829.0,0.014544]
[1770475249131,0.54576589,68863.0,68822.0,0.53438187]
[1770475249333,0.014538,68857.0,68826.0,0.53438187]
[1770475249528,0.01454,68850.0,68826.0,0.53438187]
[1770475249725,0.01454,68850.0,68830.0,0.014544]
[1770475250124,0.54576589,68863.0,68820.0,0.53450424]
[1770475250333,0.54576589,68858.0,68827.0,0.014544]
[1770475251024,0.54576589,68858.0,68820.0,0.53450424]
[1770475251332,0.014538,68857.0,68835.0,0.014543]
[1770475251530,0.014539,68854.0,68835.0,0.014543]
[1770475251925,0.014538,68858.0,68838.0,0.014542]
[1770475252125,0.014537,68860.0,68837.0,0.014542]
[1770475252634,0.014537,68860.0,68829.0,0.53438187]
[1770475252635,0.54576589,68870.0,68829.0,0.53438187]
[1770475252829,0.014537,68861.0,68829.0,0.53438187]
[1770475253024,0.014537,68861.0,68842.0,0.014541]
[1770475254236,0.014536,68869.0,68836.0,0.014542]
[1770475254429,0.014536,68869.0,68829.0,0.53438187]
[1770475254430,0.54576589,68866.0,68839.0,0.014542]
[1770475254828,0.014538,68857.0,68839.0,0.014542]
[1770475255332,0.014538,68858.0,68838.0,0.014542]
[1770475255535,0.014537,68861.0,68841.0,0.014541]
[1770475255736,0.54576589,68866.0,68829.0,0.53438187]
[1770475255932,0.014539,68851.0,68833.0,0.014543]
[1770475256238,0.014538,68859.0,68829.0,0.53438187]
[1770475256533,0.014539,68855.0,68829.0,0.53438187]
[1770475256742,0.54576589,68864.0,68829.0,0.53438187]
[1770475256743,0.014539,68853.0,68829.0,0.53438187]
[1770475256936,0.014538,68859.0,68840.0,0.014541]
[1770475257236,0.014538,68856.0,68840.0,0.014541]
[1770475258037,0.014538,68856.0,68820.0,0.00012237]
[1770475258038,0.01454,68849.0,68831.0,0.014543]
[1770475258433,0.01454,68849.0,68806.0,0.11466234]
[1770475258434,0.54576589,68844.0,68793.0,0.11466234]
[1770475258642,0.54576589,68828.0,68792.0,0.53438187]
[1770475258838,0.54576589,68820.0,68787.0,0.014553]
[1770475259232,0.014547,68814.0,68781.0,0.19943487]
[1770475259432,0.014548,68811.0,68787.0,0.014553]
[1770475259629,0.014548,68811.0,68781.0,0.19943487]
[1770475259834,0.54576589,68818.0,68760.0,0.49322089]
[1770475260036,0.54576589,68812.0,68780.0,0.014554]
[1770475260242,0.014548,68811.0,68789.0,0.014552]
[1770475260730,0.014546,68819.0,68781.0,0.49322089]
[1770475260936,0.54576589,68823.0,68785.0,0.49322089]
[1770475261135,0.014547,68816.0,68795.0,0.014551]
[1770475261338,0.014546,68820.0,68795.0,0.014551]
[1770475261935,0.54576589,68823.0,68791.0,0.014552]
[1770475262139,0.014547,68813.0,68787.0,0.014553]
[1770475262436,0.014547,68813.0,68790.0,0.014552]
[1770475262636,0.54576589,68818.0,68793.0,0.014552]
[1770475262940,0.014546,68819.0,68796.0,0.014551]
[1770475263343,0.014547,68816.0,68792.0,0.014552]
[1770475263732,0.54576589,68829.0,68797.0,0.014551]
[1770475263933,0.54576589,68829.0,68801.0,0.01455]
[1770475264142,0.014546,68820.0,68796.0,0.014551]
[1770475264741,0.54576589,68829.0,68796.0,0.014551]
[1770475265038,0.54576589,68825.0,68788.0,0.47175358]
[1770475265243,0.56031089,68825.0,68802.0,0.01455]
[1770475265438,0.014544,68829.0,68805.0,0.014549]
[1770475265635,0.014544,68829.0,68798.0,0.48466425]
[1770475265636,0.014544,68829.0,68808.0,0.014548]
[1770475265843,0.014544,68829.0,68782.0,0.07277]
[1770475265844,0.54576589,68847.0,68803.0,0.48466425]
[1770475266146,0.014544,68830.0,68810.0,0.014548]
[1770475266440,0.54691985,68835.0,68803.0,0.48466425]
[1770475266640,0.014543,68833.0,68811.0,0.014548]
[1770475266948,0.072699,68852.0,68824.0,0.014545]
[1770475266949,0.014541,68845.0,68824.0,0.014545]
[1770475267241,0.01454,68849.0,68827.0,0.014544]
[1770475267444,0.54691985,68852.0,68819.0,0.014546]
[1770475267640,0.54691985,68848.0,68821.0,0.014545]
[1770475267836,0.014541,68843.0,68821.0,0.014545]
[1770475268036,0.014542,68840.0,68813.0,0.47971683]
[1770475268235,0.014542,68838.0,68818.0,0.014546]
[1770475268542,0.54691985,68848.0,68820.0,0.014546]
[1770475268543,0.014542,68839.0,68820.0,0.014546]
[1770475268937,0.54691985,68848.0,68824.0,0.014545]
[1770475269137,0.54691985,68848.0,68813.0,0.47971683]
[1770475269138,0.01454,68847.0,68826.0,0.014544]
[1770475269340,0.014541,68844.0,68826.0,0.014544]
[1770475270246,0.014541,68842.0,68822.0,0.014545]
[1770475270444,0.014541,68842.0,68824.0,0.014545]
[1770475270749,0.56145985,68848.0,68829.0,0.014544]
[1770475270948,0.014541,68846.0,68815.0,0.48257039]
[1770475271246,0.54691985,68848.0,68817.0,0.49711639]
[1770475271546,0.014538,68858.0,68838.0,0.014542]
[1770475271736,0.014539,68854.0,68835.0,0.014543]
[1770475272639,0.014539,68852.0,68835.0,0.014543]
[1770475274049,0.014535,68874.0,68838.0,0.48503322]
[1770475274050,0.55228678,68874.0,68838.0,0.48503322]
[1770475274238,0.014539,68852.0,68832.0,0.014543]
[1770475274838,0.014539,68852.0,68834.0,0.014543]
[1770475275043,0.014539,68855.0,68834.0,0.014543]
[1770475275243,0.014539,68855.0,68836.0,0.014542]
[1770475275439,0.014539,68855.0,68816.0,0.014547]
[1770475275440,0.014538,68858.0,68841.0,0.014541]
[1770475275744,0.014538,68858.0,68820.0,0.014546]
[1770475275745,0.55248678,68877.0,68831.0,0.48935161]
[1770475275941,0.55228678,68877.0,68831.0,0.48935161]
[1770475276345,0.014536,68869.0,68848.0,0.01454]
[1770475276543,0.014536,68867.0,68848.0,0.01454]
[1770475276945,0.014534,68875.0,68856.0,0.014538]
[1770475277853,0.014534,68875.0,68859.0,0.014538]
[1770475278349,0.55228678,68887.0,68862.0,0.014537]
[1770475278653,0.014533,68882.0,68864.0,0.014536]
[1770475279148,0.55228678,68887.0,68865.0,0.014536]
[1770475279342,0.55228678,68887.0,68845.0,0.48184944]
[1770475279343,0.014537,68864.0,68845.0,0.48184944]
[1770475279548,0.014536,68866.0,68846.0,0.01454]
[1770475279743,1.29417478,68968.0,68850.0,0.49952179]
[1770475279744,0.014532,68885.0,68850.0,0.49952179]
[1770475279947,0.014535,68871.0,68852.0,0.48498279]
[1770475280147,0.55228678,68890.0,68852.0,0.48498279]
[1770475280341,0.42921366,68905.0,68851.0,0.014539]
[1770475280342,0.014535,68870.0,68851.0,0.014539]
[1770475280544,0.014535,68874.0,68854.0,0.014539]
[1770475280854,0.014534,68877.0,68858.0,0.014538]
[1770475281153,0.55228678,68883.0,68858.0,0.014538]
[1770475281547,0.014533,68881.0,68862.0,0.014537]
[1770475281747,0.55228678,68883.0,68850.0,0.50435259]
[1770475281951,0.55228678,68883.0,68841.0,0.014541]
[1770475281952,0.014533,68882.0,68857.0,0.48981359]
[1770475282154,0.014533,68880.0,68862.0,0.014537]
[1770475282354,0.014534,68876.0,68859.0,0.014538]
[1770475282554,0.014533,68879.0,68863.0,0.014537]
[1770475282749,0.55228678,68889.0,68867.0,0.014536]
[1770475283251,0.014533,68882.0,68864.0,0.014536]
[1770475283850,0.014532,68885.0,68866.0,0.014536]
[1770475284256,0.014533,68881.0,68857.0,0.48981359]
[1770475284955,0.014533,68881.0,68861.0,0.014537]
[1770475285952,0.55228678,68889.0,68858.0,0.014538]
[1770475286152,0.014536,68869.0,68847.0,0.49291474]
[1770475286358,0.014537,68862.0,68846.0,0.01454]
[1770475286664,0.014538,68857.0,68837.0,0.49291474]
[1770475286855,0.014538,68857.0,68838.0,0.014542]
[1770475287059,0.55228678,68866.0,68800.0,0.11466234]
[1770475287262,0.55228678,68866.0,68785.0,0.28757905]
[1770475287263,0.014551,68798.0,68772.0,0.11521799]
[1770475287461,0.072738,68814.0,68764.0,0.0002]
[1770475287462,0.014551,68796.0,68764.0,0.0002]
[1770475287655,0.55228678,68797.0,68764.0,0.54223661]
[1770475287959,0.3495,68801.0,68768.0,0.54203661]
[1770475288158,0.3495,68801.0,68774.0,0.54203661]
[1770475288358,0.55228678,68810.0,68776.0,0.54203661]
[1770475288663,0.014548,68809.0,68779.0,0.54203661]
[1770475288959,0.01455,68799.0,68766.0,0.54203661]
[1770475289150,0.01455,68799.0,68759.0,0.54203661]
[1770475289151,0.014552,68792.0,68759.0,0.54203661]
[1770475289356,0.00014726,68791.0,68759.0,0.54203661]
[1770475289556,0.014552,68792.0,68759.0,0.54203661]
[1770475290067,0.55228678,68811.0,68770.0,0.54203661]
[1770475290460,0.55228678,68811.0,68774.0,0.54203661]
[1770475290763,0.014547,68813.0,68779.0,0.54203661]
[1770475290960,0.014547,68813.0,68779.0,0.55659061]
[1770475291164,0.014546,68820.0,68779.0,0.54203661]
[1770475291351,0.014546,68820.0,68789.0,0.54203661]
[1770475291763,0.014543,68832.0,68800.0,0.55658661]
[1770475292158,0.014543,68832.0,68800.0,0.54203661]
[1770475292353,0.55228678,68819.0,68777.0,0.54203661]
[1770475292559,0.55228678,68819.0,68741.0,0.014563]
[1770475292560,0.01455,68803.0,68770.0,0.54203661]
[1770475292761,0.014548,68808.0,68772.0,0.54203661]
[1770475293169,0.014549,68804.0,68773.0,0.014556]
[1770475293966,0.014549,68804.0,68772.0,0.54203661]
[1770475294164,0.01455,68800.0,68772.0,0.54203661]
[1770475294566,0.072733,68818.0,68741.0,0.014563]
[1770475294567,0.014552,68790.0,68761.0,0.54203661]
[1770475294863,0.014553,68786.0,68761.0,0.54203661]
[1770475295865,0.014549,68806.0,68749.0,0.54203661]
[1770475295866,0.55228678,68782.0,68749.0,0.54203661]
[1770475296064,0.014557,68766.0,68749.0,0.54203661]
[1770475296260,0.014557,68766.0,68741.0,0.014563]
[1770475296465,0.072763,68790.0,68738.0,0.54534973]
[1770475296466,0.014558,68763.0,68738.0,0.54534973]
[1770475296660,0.52936545,68768.0,68738.0,0.54534973]
[1770475296969,0.52936545,68768.0,68731.0,0.014565]
[1770475297171,0.014559,68756.0,68731.0,0.014565]
[1770475297369,0.014559,68756.0,68727.0,0.54534973]
[1770475297370,0.01456,68752.0,68727.0,0.54534973]
[1770475297974,0.01456,68752.0,68726.0,0.014566]
[1770475298160,0.52936545,68758.0,68716.0,0.54534973]
[1770475298161,0.014559,68757.0,68729.0,0.014565]
[1770475298662,0.52936545,68770.0,68733.0,0.54534973]
[1770475298868,0.52936545,68757.0,68729.0,0.014565]
[1770475299164,0.01456,68756.0,68729.0,0.014565]
[1770475300471,0.01456,68756.0,68722.0,0.54534973]
[1770475300472,0.52936545,68757.0,68732.0,0.01474103]
[1770475300775,0.52936545,68789.0,68745.0,0.014562]
[1770475300967,0.014556,68773.0,68749.0,0.014561]
[1770475301274,0.014555,68778.0,68749.0,0.014561]
[1770475301475,0.014556,68775.0,68749.0,0.014561]
[1770475301664,0.52936545,68785.0,68742.0,0.54534973]
[1770475301966,0.52936545,68785.0,68755.0,0.01456]
[1770475302164,0.014554,68782.0,68758.0,0.014559]
[1770475303670,0.014555,68779.0,68758.0,0.014559]
[1770475304263,0.014555,68779.0,68736.0,0.014563]
[1770475304264,0.014553,68786.0,68761.0,0.014558]
[1770475304868,0.014554,68783.0,68761.0,0.014558]
[1770475305568,0.014554,68780.0,68757.0,0.014559]
[1770475306567,0.014558,68765.0,68742.0,0.014562]
[1770475306869,0.52936545,68781.0,68755.0,0.014559]
[1770475307073,0.014555,68780.0,68759.0,0.014559]
[1770475307274,0.52936545,68781.0,68762.0,0.014558]
[1770475307569,0.52936545,68792.0,68752.0,0.54534973]
[1770475307775,0.014555,68779.0,68757.0,0.014559]
[1770475308170,0.014555,68779.0,68759.0,0.014559]
[1770475308374,0.54391945,68782.0,68759.0,0.014559]
[1770475308572,0.54391945,68782.0,68761.0,0.014558]
[1770475310578,0.52936545,68782.0,68765.0,0.014557]
[1770475310775,0.014555,68777.0,68752.0,0.54534973]
[1770475310981,0.014554,68780.0,68759.0,0.014559]
[1770475311580,0.52936545,68782.0,68752.0,0.54534973]
[1770475311581,0.52936545,68782.0,68755.0,0.01456]
[1770475312280,0.014556,68775.0,68755.0,0.01456]
[1770475312781,0.014556,68775.0,68752.0,0.54534973]
[1770475312782,0.014554,68781.0,68761.0,0.014558]
[1770475313488,0.014553,68785.0,68765.0,0.014557]
[1770475313682,0.52936545,68788.0,68758.0,0.014559]
[1770475313884,0.52936545,68784.0,68758.0,0.014559]
[1770475314191,0.014556,68775.0,68754.0,0.01456]
[1770475314388,0.014556,68775.0,68756.0,0.014559]
[1770475314791,0.52936545,68764.0,68735.0,0.0002]
[1770475314987,0.52936545,68785.0,68744.0,0.54534973]
[1770475315187,0.52936545,68785.0,68746.0,0.54534973]
[1770475315490,0.014554,68784.0,68764.0,0.014558]
[1770475315794,0.014554,68783.0,68763.0,0.014558]
[1770475316893,0.014554,68781.0,68760.0,0.014558]
[1770475317094,0.014554,68781.0,68762.0,0.014558]
[1770475317294,0.014554,68781.0,68751.0,0.54534973]
[1770475317295,0.54391845,68785.0,68765.0,0.014557]
[1770475317497,0.42921366,68792.0,68778.0,0.014555]
[1770475317696,0.014551,68795.0,68767.0,0.54534973]
[1770475317895,0.014551,68795.0,68776.0,0.014555]
[1770475318396,0.014553,68785.0,68751.0,0.55990973]
[1770475318701,0.014555,68779.0,68761.0,0.014558]
[1770475318995,0.52936545,68776.0,68748.0,0.014561]
[1770475319199,0.52936545,68771.0,68728.0,0.54534973]
[1770475319498,0.52936545,68766.0,68728.0,0.54534973]
[1770475319704,0.014561,68747.0,68724.0,0.014566]
[1770475319904,0.01456,68756.0,68733.0,0.014564]
[1770475320093,0.52936545,68758.0,68733.0,0.014564]
[1770475320094,0.01456,68752.0,68733.0,0.014564]
[1770475320293,0.01456,68752.0,68729.0,0.014565]
[1770475320494,0.014562,68743.0,68721.0,0.014567]
[1770475320798,0.014561,68750.0,68728.0,0.014565]
[1770475321198,0.087343,68768.0,68698.0,0.1456]
[1770475321199,0.52936545,68735.0,68698.0,0.54534973]
[1770475321395,0.014568,68716.0,68690.0,0.002]
[1770475321600,0.002,68718.0,68690.0,0.002]
[1770475321900,0.002,68691.0,68690.0,0.002]
[1770475322108,0.014571,68702.0,68676.0,0.014576]
[1770475322302,0.52936545,68705.0,68680.0,0.0002]
[1770475322598,0.072826,68731.0,68637.0,0.54534973]
[1770475322599,0.52936545,68687.0,68637.0,0.54534973]
[1770475322995,0.52936545,68687.0,68653.0,0.55993073]
[1770475323298,0.52936545,68698.0,68660.0,0.01458]
[1770475323505,0.52936545,68698.0,68664.0,0.014579]
[1770475323699,0.00015048,68697.0,68664.0,0.55992873]
[1770475324005,0.52936545,68698.0,68664.0,0.55992873]
[1770475324701,0.014571,68703.0,68669.0,0.55992773]
[1770475324999,0.00016036,68702.0,68674.0,0.55992673]
[1770475325303,0.014567,68722.0,68691.0,0.014573]
[1770475325694,0.014566,68728.0,68694.0,0.55992173]
[1770475325906,0.52936545,68735.0,68694.0,0.54534973]
[1770475325907,0.014566,68723.0,68694.0,0.54534973]
[1770475326203,0.00010124,68722.0,68694.0,0.54534973]
[1770475327500,0.00010124,68721.0,68694.0,0.54534973]
[1770475328305,0.01457,68707.0,68682.0,0.52763601]
[1770475328500,0.01457,68704.0,68670.0,0.54221401]
[1770475328703,0.014571,68701.0,68670.0,0.54221401]
[1770475328905,0.014572,68697.0,68670.0,0.52763601]
[1770475329203,0.014573,68695.0,68670.0,0.52763601]
[1770475329396,0.014574,68687.0,68660.0,0.01458]
[1770475329602,0.00010124,68686.0,68664.0,0.014579]
[1770475329798,0.014576,68676.0,68647.0,0.52763601]
[1770475330003,0.00010124,68675.0,68648.0,0.52763601]
[1770475330600,0.00010124,68675.0,68649.0,0.014582]
[1770475330906,0.00010124,68675.0,68648.0,0.52763601]
[1770475330907,0.00010124,68675.0,68653.0,0.014581]
[1770475331510,0.00010124,68675.0,68648.0,0.54221801]
[1770475331802,0.014577,68672.0,68648.0,0.52763601]
[1770475331999,0.014578,68670.0,68648.0,0.52763601]
[1770475332509,0.00010124,68671.0,68648.0,0.52763601]
[1770475332704,0.00010124,68671.0,68648.0,0.54221801]
[1770475332907,0.00010124,68671.0,68648.0,0.52763601]
[1770475333207,0.014578,68669.0,68648.0,0.52763601]
[1770475333396,0.00010124,68668.0,68638.0,0.014584]
[1770475333603,0.5519086,68676.0,68637.0,0.55015113]
[1770475333604,0.014579,68663.0,68637.0,0.55015113]